bitfinex-derivatives/quotes_SOLF0:USTF0_20260108
["timestamp","ask_amount","ask_price","bid_price","bid_amount"]
[1767835819714,2.02961523,137.2,137.16,0.04722836]
[1767835820404,2.02961523,137.2,137.12,86.16]
[1767835820604,0.04861386,137.19,137.12,86.16]
[1767835821414,0.04861386,137.19,137.14,6.569]
[1767835822916,2.07822909,137.19,137.12,92.7296]
[1767835824805,2.07822909,137.19,137.11,3.35059608]
[1767835825007,2.07822909,137.19,137.1,6.5706]
[1767835825303,2.02961523,137.16,137.09,96.08199608]
[1767835825813,0.05039402,137.14,137.09,96.08199608]
[1767835826505,0.05039402,137.14,137.09,96.10199608]
[1767835826910,2.02961523,137.18,137.09,90.99059608]
[1767835827111,2.02961523,137.2,137.11,3.35059608]
[1767835827315,2.02961523,137.22,137.14,6.5689]
[1767835827708,2.02961523,137.22,137.13,89.53059608]
[1767835827908,2.02961523,137.22,137.15,6.5684]
[1767835832322,2.02961523,137.22,137.14,6.5687]
[1767835834014,8.63075748,137.23,137.15,9.91909608]
[1767835834809,2.06595748,137.22,137.15,9.91909608]
[1767835835217,8.63075748,137.23,137.18,0.05167865]
[1767835835714,2.06595748,137.23,137.18,0.05167865]
[1767835837020,2.06595748,137.21,137.13,3.35059608]
[1767835838222,0.05200552,137.18,137.14,6.5689]
[1767835838416,2.06595748,137.23,137.13,105.54029608]
[1767835838721,2.06595748,137.23,137.15,3.35059608]
[1767835839626,2.06595748,137.23,137.16,6.5679]
[1767835845631,2.06595748,137.23,137.18,0.05399185]
[1767835845931,0.04626815,137.21,137.18,0.05399185]
[1767835846934,2.11222563,137.21,137.18,0.05399185]
[1767835847826,2.06595748,137.2,137.14,6.5686]
[1767835850235,2.06595748,137.19,137.13,86.18]
[1767835850434,2.06595748,137.19,137.12,6.5696]
[1767835851025,2.12076804,137.17,137.1,15.51739843]
[1767835851231,2.12076804,137.17,137.1,8.94689843]
[1767835852436,2.12076804,137.17,137.09,98.47749451]
[1767835852830,8.68846804,137.17,137.09,15.51789843]
[1767835853434,8.68846804,137.17,137.09,6.571]
[1767835854937,2.06595748,137.15,137.07,15.51889843]
[1767835855240,2.06595748,137.15,137.07,101.69889843]
[1767835855437,8.63515748,137.14,137.07,86.18]
[1767835855940,0.051031,137.12,137.07,86.18]
[1767835856128,0.051031,137.12,137.07,92.7522]
[1767835858042,0.051031,137.12,137.07,6.5722]
[1767835858243,0.051031,137.12,137.07,92.7522]
[1767835858833,0.051031,137.12,137.07,86.18]
[1767835859145,2.11698848,137.12,137.05,92.7529]
[1767835859342,2.11698848,137.12,137.05,6.5729]
[1767835859544,2.11698848,137.12,137.05,92.7729]
[1767835860432,2.11698848,137.12,137.05,6.5729]
[1767835860638,2.11698848,137.12,137.03,6.5739]
[1767835860838,2.11698848,137.12,137.04,86.2]
[1767835861040,2.06595748,137.12,137.04,86.2]
[1767835861438,0.05260361,137.09,137.04,86.2]
[1767835862746,2.33972311,137.09,137.01,6.5749]
[1767835862949,2.33972311,137.09,136.99,86.2]
[1767835863248,8.8601195,137.06,136.99,86.2]
[1767835863447,2.2871195,137.05,136.99,86.2]
[1767835863747,2.34128224,137.05,136.99,86.2]
[1767835864247,2.34128224,137.05,136.98,6.5766]
[1767835864449,2.34128224,137.05,136.98,92.7766]
[1767835865350,2.34128224,137.05,136.98,92.7966]
[1767835869863,2.2871195,137.04,136.98,86.22]
[1767835870554,2.2871195,137.04,136.99,2.15015885]
[1767835871059,2.2871195,137.04,136.93,102.3388]
[1767835871256,2.2871195,137.03,136.94,86.24]
[1767835871456,2.2871195,137.03,136.97,2.15015885]
[1767835871849,0.05469862,137.0,136.95,2.15015885]
[1767835872756,2.2871195,137.02,136.97,2.15015885]
[1767835872951,2.2871195,137.02,136.96,0.05604554]
[1767835873153,2.2871195,137.04,136.98,2.15015885]
[1767835873963,2.2871195,137.04,137.0,0.05152609]
[1767835881570,2.2871195,137.06,137.0,0.05152609]
[1767835881973,2.2871195,137.06,136.99,2.15015885]
[1767835882364,2.2871195,137.06,137.02,0.05561265]
[1767835888674,0.04755307,137.05,136.99,8.72625885]
[1767835888974,2.33467257,137.05,136.99,2.15015885]
[1767835889176,2.2871195,137.04,136.99,2.15015885]
[1767835889367,2.2871195,137.04,136.97,8.72695885]
[1767835890074,0.0547431,137.02,136.97,8.72695885]
[1767835893284,2.52076635,137.02,136.97,6.5768]
[1767835896581,2.52076635,137.02,136.98,6.5766]
[1767835897083,2.52076635,137.02,136.96,2.15015885]
[1767835898587,2.52076635,137.02,136.97,6.5771]
[1767835899286,5.68327878,137.01,136.97,6.5771]
[1767835899487,2.52076635,137.02,136.97,6.5771]
[1767835899686,5.68349663,137.01,136.97,6.5771]
[1767835899986,2.52076635,137.02,136.97,6.5771]
[1767835900187,5.68349663,137.01,136.97,6.5771]
[1767835900489,2.52076635,137.02,136.97,6.5771]
[1767835900687,5.68723803,137.01,136.97,6.5771]
[1767835900986,2.52076635,137.02,136.97,6.5771]
[1767835901288,5.6872427,137.01,136.97,6.5771]
[1767835901488,5.69118923,137.0,136.97,6.5771]
[1767835901684,2.52076635,137.02,136.97,6.5771]
[1767835901985,5.69083155,137.01,136.97,6.5771]
[1767835902186,2.52076635,137.02,136.97,6.5771]
[1767835902392,5.6908295,137.01,136.97,6.5771]
[1767835902580,5.6908295,137.0,136.97,6.5771]
[1767835902782,2.52076635,137.02,136.97,6.5771]
[1767835902982,5.69510136,137.01,136.97,6.5771]
[1767835903185,5.69510136,137.0,136.97,6.5771]
[1767835903487,2.52076635,137.02,136.97,6.5771]
[1767835903681,5.70038071,137.01,136.97,6.5771]
[1767835903882,2.52076635,137.02,136.97,6.5771]
[1767835905387,2.52076635,137.02,136.96,2.15015885]
[1767835906684,2.52076635,137.02,136.97,6.5772]
[1767835907600,0.0547431,137.02,136.96,2.15015885]
[1767835907895,2.46602325,137.04,136.98,2.15015885]
[1767835908283,2.46602325,137.06,137.0,2.15015885]
[1767835908588,2.46602325,137.09,137.02,2.15015885]
[1767835909596,2.46602325,137.09,137.02,8.72485885]
[1767835913497,2.46602325,137.09,137.04,2.15015885]
[1767835914295,6.5703,137.12,137.04,2.15015885]
[1767835914296,88.64602325,137.11,137.04,2.15015885]
[1767835915198,88.64602325,137.11,137.01,188.5591]
[1767835915500,2.46602325,137.11,137.05,2.15015885]
[1767835920505,6.5703,137.12,137.05,2.15015885]
[1767835920902,9.03632325,137.12,137.05,8.72345885]
[1767835921099,2.46602325,137.12,137.07,2.15015885]
[1767835921315,9.03532325,137.14,137.02,102.2706]
[1767835921500,2.46602325,137.13,137.07,2.15015885]
[1767835921816,2.46602325,137.15,137.08,6.5717]
[1767835922001,2.46602325,137.15,137.09,2.15015885]
[1767835922902,2.33847686,137.17,137.11,2.15015885]
[1767835923611,2.33847686,137.17,137.08,102.2265]
[1767835923612,2.33847686,137.17,137.13,2.15015885]
[1767835924208,2.33847686,137.17,137.09,6.571]
[1767835924513,2.33847686,137.17,137.09,2.15015885]
[1767835925704,8.90617686,137.17,137.09,2.15015885]
[1767835926106,2.33847686,137.16,137.09,2.15015885]
[1767835928816,2.33847686,137.16,137.11,0.04825939]
[1767835937111,8.90657686,137.16,137.11,0.04825939]
[1767835937312,2.33847686,137.16,137.07,6.572]
[1767835937518,5.69283212,137.16,137.05,89.57435526]
[1767835937714,2.33847686,137.15,137.05,86.22]
[1767835937907,2.33847686,137.15,137.04,89.57435526]
[1767835938105,2.33847686,137.13,137.06,6.5728]
[1767835938406,2.33847686,137.16,137.06,3.35435526]
[1767835939018,8.90687686,137.16,137.08,6.5718]
[1767835939419,2.33847686,137.15,137.08,6.5718]
[1767835941411,6.5684,137.16,137.08,6.5718]
[1767835941617,8.90637686,137.17,137.09,6.571]
[1767835943326,2.33847686,137.17,137.11,6.5703]
[1767835945723,2.33847686,137.17,137.12,6.5699]
[1767835945923,2.33847686,137.19,137.12,3.35435526]
[1767835946119,2.33847686,137.21,137.12,3.35435526]
[1767835946315,2.33847686,137.21,137.15,6.5685]
[1767835947823,191.66145526,137.25,137.16,6.5679]
[1767835947824,2.33847686,137.24,137.16,6.5679]
[1767835948028,2.33847686,137.24,137.16,9.92225526]
[1767835948226,2.33847686,137.24,137.16,3.35435526]
[1767835949527,2.33847686,137.25,137.17,6.5675]
[1767835952429,2.4473701,137.24,137.15,6.5682]
[1767835952723,2.4473701,137.24,137.14,3.35435526]
[1767835952724,2.4473701,137.24,137.14,86.2]
[1767835952929,2.4473701,137.21,137.12,89.55435526]
[1767835953129,2.4473701,137.21,137.13,6.5692]
[1767835954527,2.4473701,137.2,137.13,6.5692]
[1767835956931,2.4473701,137.2,137.1,102.2124]
[1767835956932,2.4473701,137.19,137.11,6.5701]
[1767835958533,9.0140701,137.19,137.11,6.5701]
[1767835958735,2.4473701,137.18,137.11,6.5701]
[1767835959928,6.5667,137.19,137.11,6.5701]
[1767835960143,9.0140701,137.19,137.13,0.05500931]
[1767835965450,9.0145701,137.18,137.13,0.05500931]
[1767835965650,2.4473701,137.17,137.13,0.05500931]
[1767835965853,2.4473701,137.17,137.11,6.5701]
[1767835966644,2.4473701,137.17,137.13,0.05590962]
[1767835975065,0.05140419,137.16,137.13,0.05590962]
[1767835982660,2.63771606,137.16,137.09,86.2]
[1767835982861,2.63771606,137.16,137.07,102.2373]
[1767835983050,2.63771606,137.16,137.06,200.74565369]
[1767835983253,2.58631187,137.16,137.06,200.74565369]
[1767835984065,0.05121034,137.12,137.06,200.74565369]
[1767835984858,2.58631187,137.16,137.06,200.74565369]
[1767835985661,2.58631187,137.16,137.1,6.5708]
[1767835987965,2.58631187,137.15,137.08,6.5715]
[1767835988163,2.58631187,137.15,137.05,8.94689843]
[1767835988473,2.58631187,137.11,137.04,86.2]
[1767835989068,2.58631187,137.11,137.02,12.30125369]
[1767835989069,2.58631187,137.1,137.01,8.94689843]
[1767835989267,2.58631187,137.1,137.01,86.2]
[1767835990774,2.58631187,137.09,137.02,6.5747]
[1767835991173,2.58631187,137.08,137.01,86.2]
[1767835991468,2.58631187,137.08,137.0,92.7753]
[1767835991776,2.58631187,137.08,137.01,6.5751]
[1767835992466,2.58631187,137.08,137.01,8.72453453]
[1767836001079,2.58631187,137.08,137.03,0.04614256]
[1767836003482,2.58631187,137.1,137.03,2.19557709]
[1767836003891,2.58631187,137.05,136.99,6.5761]
[1767836005172,0.0460011,137.03,136.99,6.5761]
[1767836005572,0.0460011,137.03,136.98,2.14943453]
[1767836006271,0.0460011,137.03,136.98,8.72603453]
[1767836011775,0.0460011,137.03,136.99,6.5761]
[1767836013383,0.0460011,137.03,136.97,92.8368]
[1767836013591,2.60134285,137.02,136.92,102.3483]
[1767836013781,2.60134285,137.02,136.94,2.14943453]
[1767836014583,2.60134285,137.02,136.95,6.5781]
[1767836015191,0.04604376,137.0,136.96,2.14943453]
[1767836016689,2.60134285,137.04,136.98,2.14943453]
[1767836017076,2.60134285,137.04,136.99,2.14943453]
[1767836017475,2.60134285,137.06,136.99,2.14943453]
[1767836018487,2.60134285,137.06,136.98,6.5766]
[1767836018692,2.60134285,137.05,136.98,8.3968935]
[1767836019390,2.60134285,137.05,136.98,6.5766]
[1767836019990,2.60134285,137.04,136.98,6.5766]
[1767836020187,2.60134285,137.04,136.97,86.28]
[1767836020692,2.60134285,137.03,136.97,86.28]
[1767836021390,2.60134285,137.03,136.96,8.3978935]
[1767836022786,2.60134285,137.02,136.94,88.1002935]
[1767836023091,2.60134285,137.05,136.96,1.8202935]
[1767836023990,9.17504285,137.05,136.98,6.5767]
[1767836027095,2.60134285,137.05,136.98,8.3969935]
[1767836027302,95.43414285,137.07,136.99,6.5761]
[1767836027701,9.17414285,137.07,137.0,1.8202935]
[1767836028801,9.17414285,137.07,137.0,8.3958935]
[1767836028998,9.17414285,137.07,137.02,0.052367]
[1767836037518,2.60134285,137.06,137.02,0.052367]
[1767836040603,9.17414285,137.07,137.02,0.052367]
[1767836043514,2.60134285,137.07,137.02,0.052367]
[1767836044617,9.17374285,137.07,137.02,0.052367]
[1767836050425,2.66687122,137.06,137.02,0.052367]
[1767836050720,188.4913,137.11,137.04,1.8202935]
[1767836050721,86.28,137.11,137.04,1.8202935]
[1767836050927,2.66687122,137.12,137.06,1.8202935]
[1767836051325,2.66687122,137.09,136.99,95.20689843]
[1767836051538,2.66687122,137.08,136.99,88.0802935]
[1767836051833,2.66687122,137.06,136.97,1.8202935]
[1767836052036,2.66687122,137.06,136.97,88.0802935]
[1767836052733,9.23977122,137.06,136.99,6.5758]
[1767836057833,2.66687122,137.05,136.99,6.5758]
[1767836084154,2.79108835,137.04,136.97,15.52369843]
[1767836084344,2.79108835,137.04,136.95,95.20689843]
[1767836084753,9.36548835,137.03,136.97,6.5771]
[1767836093254,2.79108835,137.03,136.98,6.5766]
[1767836093464,9.36468835,137.05,136.95,200.37468161]
[1767836094254,2.79108835,137.05,136.97,2.84418318]
[1767836094864,2.79108835,137.05,137.0,6.5757]
[1767836099063,2.79108835,137.04,136.96,8.94689843]
[1767836100664,2.79108835,137.04,136.98,6.5766]
[1767836101374,2.79108835,137.03,136.95,98.05108161]
[1767836102364,2.79108835,137.03,136.97,6.5772]
[1767836104474,2.82856818,137.01,136.95,6.5779]
[1767836104972,2.82856818,137.01,136.94,86.28]
[1767836106572,2.82856818,137.01,136.96,6.5776]
[1767836107973,2.82856818,137.03,136.96,6.5776]
[1767836108166,2.82856818,137.03,136.97,6.5771]
[1767836122893,2.67670838,137.02,136.95,6.5777]
[1767836123094,2.67670838,137.02,136.95,8.39825374]
[1767836123990,2.67670838,137.02,136.95,6.5777]
[1767836124692,2.67670838,137.01,136.94,86.28]
[1767836126098,2.67670838,137.01,136.94,92.8584]
[1767836133206,2.67670838,137.01,136.94,6.5784]
[1767836136212,9.43263613,137.04,136.95,1.82055374]
[1767836136411,2.85833613,137.04,136.95,1.82055374]
[1767836137693,6.5743,137.03,136.96,6.5776]
[1767836138908,9.43263613,137.03,136.96,6.5776]
[1767836145116,9.43263613,137.03,136.97,0.0204379]
[1767836150017,2.85833613,137.02,136.97,0.0204379]
[1767836157425,2.85833613,137.02,136.97,6.5974379]
[1767836165231,2.85833613,137.02,136.95,15.56543142]
[1767836165430,2.75046016,137.01,136.95,6.61853299]
[1767836166228,2.75046016,137.01,136.96,6.5776]
[1767836166424,2.75046016,137.01,136.96,6.61924022]
[1767836166630,2.75046016,137.01,136.97,6.5769]
[1767836166835,2.75046016,137.04,136.97,0.04164022]
[1767836167536,2.75046016,137.03,136.97,0.04164022]
[1767836168532,2.75046016,137.03,136.97,6.61884022]
[1767836168735,2.75046016,137.05,136.98,0.04341417]
[1767836169236,2.75046016,137.05,137.0,6.5757]
[1767836171330,2.75046016,137.05,137.0,6.62395284]
[1767836174238,2.75046016,137.05,137.0,0.04825284]
[1767836174445,2.75046016,137.05,136.98,6.62700243]
[1767836175242,2.75046016,137.05,136.99,6.6276327]
[1767836181848,6.5729,137.06,137.0,0.05609166]
[1767836182046,2.77372976,137.07,137.01,0.05609166]
[1767836190055,2.77372976,137.07,137.03,0.04851804]
[1767836193056,9.34612976,137.07,137.03,0.04851804]
[1767836193354,2.74089441,137.06,137.0,6.5757]
[1767836203258,2.68552854,137.05,136.99,0.06344702]
[1767836204847,2.68552854,137.05,137.0,0.11926766]
[1767836205461,2.68552854,137.05,137.0,6.69496766]
[1767836206862,2.68552854,137.05,137.0,0.11926766]
[1767836212463,2.68552854,137.05,136.99,6.5762]
[1767836212662,2.8495835,137.04,136.99,6.5762]
[1767836213460,2.8495835,137.02,136.99,6.5762]
[1767836219768,0.04960171,137.03,136.99,6.5762]
[1767836221369,2.89918521,137.03,136.99,6.5762]
[1767836221566,2.89918521,137.03,136.98,6.5767]
[1767836222367,2.89918521,137.03,136.97,86.26]
[1767836223569,2.81444449,137.02,136.97,86.26]
[1767836225082,2.81444449,137.02,136.97,86.39123708]
[1767836229986,2.81444449,137.02,136.97,86.26]
[1767836231386,2.81444449,137.02,136.96,6.5776]
[1767836231581,0.04960171,137.03,136.94,86.41346484]
[1767836231789,0.04960171,137.03,136.95,0.13346484]
[1767836231790,2.96139308,137.03,136.95,0.13346484]
[1767836232174,2.91179137,137.03,136.95,0.13346484]
[1767836232581,2.91179137,137.03,136.94,86.28]
[1767836232582,0.04845885,137.0,136.96,6.71127436]
[1767836235379,0.04845885,137.0,136.96,0.13387436]
[1767836235889,0.04845885,137.0,136.95,86.28]
[1767836236190,2.96025022,137.0,136.95,86.28]
[1767836238496,2.96025022,137.0,136.95,88.10114939]
[1767836242304,2.96025022,137.0,136.95,88.23877467]
[1767836248196,2.96025022,137.0,136.95,1.95877467]
[1767836248805,0.04845885,137.0,136.96,0.13965133]
[1767836250010,2.96025022,137.0,136.95,8.39924939]
[1767836251110,2.96025022,137.0,136.95,8.53985163]
[1767836261711,0.04845885,137.0,136.97,0.14406597]
[1767836261916,2.85461184,137.04,136.98,0.14406597]
[1767836263718,9.42901184,137.03,136.98,0.14406597]
[1767836264715,9.42901184,137.03,136.99,0.05315936]
[1767836264915,9.42901184,137.03,136.98,0.14406597]
[1767836265119,0.05220905,137.02,136.98,0.14406597]
[1767836265818,2.90682089,137.02,136.96,8.49586741]
[1767836268120,2.90682089,137.02,136.97,0.09785131]
[1767836270229,2.85461184,137.01,136.95,1.92006508]
[1767836270918,2.85461184,137.01,136.95,0.09891569]
[1767836271322,9.42991184,137.01,136.95,0.09891569]
[1767836271520,2.85461184,137.0,136.95,0.09891569]
[1767836272327,0.05330972,136.99,136.95,0.09891569]
[1767836274142,2.90792156,136.99,136.93,0.10034353]
[1767836275532,6.5769,136.98,136.93,0.10034353]
[1767836275731,5.63858334,136.97,136.93,0.10034353]
[1767836276032,5.63858334,136.96,136.93,0.10034353]
[1767836276329,2.90792156,136.99,136.93,0.10034353]
[1767836276517,5.63821367,136.98,136.93,0.10034353]
[1767836276722,5.63821367,136.97,136.93,0.10034353]
[1767836276930,5.63821367,136.96,136.93,0.10034353]
[1767836277131,0.05398712,136.97,136.93,0.10034353]
[1767836277432,5.6380786,136.96,136.93,0.10034353]
[1767836277630,0.05398712,136.97,136.93,0.10034353]
[1767836277835,5.6380786,136.96,136.93,0.10034353]
[1767836278027,0.05398712,136.97,136.93,0.10034353]
[1767836278328,5.6380786,136.96,136.93,0.10034353]
[1767836278631,0.05398712,136.97,136.93,0.10034353]
[1767836278933,5.63800033,136.96,136.93,0.10034353]
[1767836279134,0.05398712,136.97,136.93,0.10034353]
[1767836279334,5.63796502,136.96,136.93,0.10034353]
[1767836279536,0.05398712,136.97,136.93,0.10034353]
[1767836279735,5.63796502,136.96,136.93,0.10034353]
[1767836279936,0.05398712,136.97,136.93,0.10034353]
[1767836280136,5.63796502,136.96,136.93,0.10034353]
[1767836280433,0.05398712,136.97,136.93,0.10034353]
[1767836280633,5.63815488,136.96,136.93,0.10034353]
[1767836280820,0.05398712,136.97,136.93,0.10034353]
[1767836281019,5.63815488,136.96,136.93,0.10034353]
[1767836281233,0.05398712,136.97,136.93,0.10034353]
[1767836281433,5.63801655,136.96,136.93,0.10034353]
[1767836281636,0.05398712,136.97,136.93,0.10034353]
[1767836281835,5.6294556,136.96,136.93,0.10034353]
[1767836282135,0.05398712,136.97,136.93,0.10034353]
[1767836282325,5.62934102,136.96,136.93,0.10034353]
[1767836282525,0.05398712,136.97,136.93,0.10034353]
[1767836282735,5.62900528,136.96,136.93,0.10034353]
[1767836282935,0.05398712,136.97,136.93,0.10034353]
[1767836283137,5.62900528,136.96,136.93,0.10034353]
[1767836283330,0.05398712,136.97,136.93,0.10034353]
[1767836283530,5.62858868,136.96,136.93,0.10034353]
[1767836283732,0.05398712,136.97,136.93,0.10034353]
[1767836283931,5.62858868,136.96,136.93,0.10034353]
[1767836284132,0.05398712,136.97,136.93,0.10034353]
[1767836284334,5.62845882,136.96,136.93,0.10034353]
[1767836284534,0.05398712,136.97,136.93,6.67944353]
[1767836284737,2.14e-06,136.96,136.93,6.67944353]
[1767836284939,0.05398712,136.97,136.93,6.67944353]
[1767836288346,0.05398712,136.97,136.93,0.10034353]
[1767836303577,2.73705337,136.97,136.91,0.11018238]
[1767836304475,2.68306625,136.96,136.91,0.11018238]
[1767836305577,2.68306625,136.96,136.91,6.69018238]
[1767836306875,2.68306625,136.96,136.92,6.5795]
[1767836307073,0.05398712,136.97,136.91,0.11018238]
[1767836307283,0.05398712,136.97,136.92,0.11111266]
[1767836310478,0.05398712,136.97,136.92,6.69061266]
[1767836312475,0.05398712,136.97,136.93,6.69549605]
[1767836315279,2.8972266,137.01,136.94,6.69526338]
[1767836315476,2.8972266,137.01,136.95,0.11686338]
[1767836315780,2.8972266,137.01,136.95,6.69496338]
[1767836317286,2.8972266,137.01,136.96,0.11714859]
[1767836318793,86.3,137.06,136.96,0.11714859]
[1767836318979,2.8972266,137.07,137.0,0.11728723]
[1767836320687,0.04970858,137.05,136.99,6.576]
[1767836320987,2.8972266,137.04,136.98,86.41438293]
[1767836329692,2.8972266,137.04,136.99,0.08867888]
[1767836330692,0.04970858,137.05,136.99,0.08867888]
[1767836331494,2.94693518,137.05,136.99,0.08867888]
[1767836333494,9.52033518,137.05,136.99,0.08867888]
[1767836333895,2.8972266,137.04,136.99,0.08867888]
[1767836342004,6.5727,137.07,137.0,0.05823232]
[1767836342406,9.34751413,137.07,137.0,0.05823232]
[1767836343598,9.34751413,137.07,137.01,0.04378463]
[1767836346906,9.34751413,137.07,137.01,6.61898463]
[1767836349109,2.77481413,137.07,137.01,6.61898463]
[1767836349908,2.77481413,137.07,137.02,6.5748]
[1767836350114,6.5735,137.05,136.96,2.76827813]
[1767836350403,2.77481413,137.04,136.96,89.02827813]
[1767836350608,2.77481413,137.04,136.96,2.76827813]
[1767836351003,2.77481413,137.03,136.96,2.76827813]
[1767836352612,2.77481413,137.03,136.96,9.34577813]
[1767836361910,2.77481413,137.03,136.97,2.76827813]
[1767836364713,2.77481413,137.05,136.98,2.76827813]
[1767836365014,2.77481413,137.05,137.0,1.82068915]
[1767836365214,2.77481413,137.05,137.0,4.58896728]
[1767836365922,2.77481413,137.05,137.0,11.16456728]
[1767836368321,2.77481413,137.08,137.01,2.76827813]
[1767836369728,2.77481413,137.08,137.02,6.5747]
[1767836371730,2.77481413,137.08,137.01,2.76827813]
[1767836372533,2.77481413,137.08,137.01,9.34347813]
[1767836375833,9.34671413,137.08,137.01,9.34347813]
[1767836376134,2.74314003,137.07,137.01,9.34347813]
[1767836376734,9.31554003,137.07,137.01,2.76827813]
[1767836377032,2.74314003,137.05,136.99,2.76677507]
[1767836378551,2.74314003,137.04,136.99,2.76677507]
[1767836378742,2.74314003,137.04,136.97,9.34347507]
[1767836379548,9.31694003,137.04,136.97,9.34347507]
[1767836380233,2.74314003,137.03,136.97,9.34347507]
[1767836385549,2.74314003,137.03,136.97,2.76677507]
[1767836387951,2.74314003,137.03,136.98,2.76677507]
[1767836399768,2.74314003,137.03,136.98,9.34337507]
[1767836400457,2.74314003,137.03,136.98,2.76677507]
[1767836401567,2.74314003,137.03,136.97,6.5771]
[1767836402060,3.03008218,137.02,136.94,9.06582352]
[1767836402260,3.03008218,137.02,136.94,2.87551606]
[1767836402768,9.52888779,137.0,136.94,2.87551606]
[1767836402957,2.95308779,137.0,136.94,2.87551606]
[1767836412171,9.52888779,137.0,136.94,2.87551606]
[1767836413975,2.95308779,136.99,136.94,2.87551606]
[1767836414174,2.95308779,136.98,136.92,89.3836436]
[1767836414476,2.95308779,136.98,136.92,3.1036436]
[1767836415675,9.53008779,136.98,136.92,3.1036436]
[1767836418678,2.95308779,136.98,136.92,9.6832436]
[1767836424783,2.95308779,136.98,136.93,3.1036436]
[1767836447400,5.56947417,136.97,136.93,3.1036436]
[1767836447585,5.56947417,136.96,136.93,3.1036436]
[1767836447786,2.95308779,136.98,136.93,3.1036436]
[1767836447993,5.56947417,136.97,136.93,3.1036436]
[1767836448198,5.56947417,136.96,136.93,3.1036436]
[1767836448499,2.95308779,136.98,136.93,3.1036436]
[1767836448698,5.56990096,136.97,136.93,3.1036436]
[1767836448898,5.56990096,136.96,136.93,3.1036436]
[1767836449196,2.95308779,136.98,136.93,3.1036436]
[1767836449399,5.56990096,136.97,136.93,3.1036436]
[1767836449592,5.56990096,136.96,136.93,3.1036436]
[1767836449792,2.95308779,136.98,136.93,3.1036436]
[1767836449996,5.57037103,136.97,136.93,3.1036436]
[1767836450194,5.57037103,136.96,136.93,3.1036436]
[1767836450401,2.95308779,136.98,136.93,3.1036436]
[1767836450602,5.570881,136.97,136.93,3.1036436]
[1767836450897,5.570881,136.96,136.93,3.1036436]
[1767836451097,2.95308779,136.98,136.93,3.1036436]
[1767836451301,5.57088295,136.97,136.93,3.1036436]
[1767836451596,5.57088295,136.96,136.93,3.1036436]
[1767836451796,2.95308779,136.98,136.93,3.1036436]
[1767836452002,5.5714435,136.97,136.93,3.1036436]
[1767836452203,5.5714435,136.96,136.93,3.1036436]
[1767836452504,2.95308779,136.98,136.93,3.1036436]
[1767836452698,5.57207211,136.97,136.93,3.1036436]
[1767836452895,2.95308779,136.98,136.93,3.1036436]
[1767836452896,5.57207211,136.96,136.93,3.1036436]
[1767836453099,2.95308779,136.98,136.93,3.1036436]
[1767836453292,5.57207211,136.97,136.93,3.1036436]
[1767836453498,5.57207211,136.96,136.93,3.1036436]
[1767836453702,2.95308779,136.98,136.93,3.1036436]
[1767836453902,5.57278147,136.97,136.93,3.1036436]
[1767836454110,5.57278147,136.96,136.93,3.1036436]
[1767836454306,9.959e-05,136.95,136.93,3.1036436]
[1767836454611,2.95308779,136.98,136.93,3.1036436]
[1767836457906,3.14970586,137.0,136.93,3.1036436]
[1767836458108,6.5757,137.01,136.93,3.1036436]
[1767836458310,9.72540586,137.01,136.93,3.1036436]
[1767836459608,9.72540586,137.01,136.95,2.95356226]
[1767836464216,3.07581178,137.0,136.95,2.95356226]
[1767836469222,89.35581178,137.02,136.96,3.22754163]
[1767836469518,3.07581178,137.02,136.96,3.22754163]
[1767836470720,3.07581178,137.02,136.97,9.80444163]
[1767836473525,9.65001178,137.04,136.98,3.22754163]
[1767836474224,3.07581178,137.03,136.98,3.22754163]
[1767836478127,6.5742,137.04,136.98,3.22754163]
[1767836478626,9.65001178,137.04,136.98,3.22754163]
[1767836482829,3.07581178,137.03,136.98,3.22754163]
[1767836490140,3.07581178,137.02,136.96,9.80494163]
[1767836492241,2.99675579,137.01,136.96,3.22754163]
[1767836499955,6.5748,137.02,136.96,3.22754163]
[1767836500155,9.57155579,137.02,136.96,3.22754163]
[1767836500354,2.99675579,137.01,136.96,3.22754163]
[1767836516666,2.99675579,137.01,136.95,6.5781]
[1767836516961,2.99675579,137.0,136.94,9.71971912]
[1767836518668,9.57255579,137.0,136.94,9.71971912]
[1767836518965,2.99675579,137.11,136.95,3.14121912]
[1767836519175,2.99675579,137.1,137.04,3.14121912]
[1767836519366,2.99675579,137.12,137.06,3.14121912]
[1767836520669,2.99675579,137.11,137.03,15.20157624]
[1767836520972,2.99675579,137.11,137.03,11.53595233]
[1767836521174,2.99675579,137.11,137.04,3.14121912]
[1767836521565,9.56735579,137.11,137.04,3.14121912]
[1767836525679,3.08458813,137.1,137.04,3.14121912]
[1767836549105,3.08458813,137.1,137.0,105.1290768]
[1767836549106,3.22140349,137.09,137.02,3.27263783]
[1767836550705,9.79340349,137.08,137.02,3.27263783]
[1767836558514,9.76176108,137.1,137.03,6.5742]